bitfinex/quotes_SOLUSD_20260310
["timestamp","ask_amount","ask_price","bid_price","bid_amount"]
[1773131900005,2.39845639,86.859,86.828,2.56878564]
[1773131900383,13.30275149,86.85,86.824,11.51755275]
[1773131900587,2.39845639,86.85,86.825,2.56878564]
[1773131900822,2.39845639,86.859,86.825,2.56878564]
[1773131901184,40.29101624,86.868,86.825,2.56878564]
[1773131901185,11.51171892,86.868,86.825,2.56878564]
[1773131901497,2.39845639,86.867,86.825,2.56878564]
[1773131901696,2.39845639,86.865,86.827,2.56878564]
[1773131901904,10.9042951,86.86,86.827,2.56878564]
[1773131902087,2.39845639,86.859,86.827,2.56878564]
[1773131902814,11.51198397,86.866,86.804,11.52020644]
[1773131902815,2.39845639,86.839,86.804,11.52020644]
[1773131903111,2.39845639,86.847,86.805,2.56878564]
[1773131903487,10.9042951,86.84,86.805,2.56878564]
[1773131906615,2.39845639,86.839,86.807,2.56878564]
[1773131906918,2.39845639,86.829,86.806,11.51994101]
[1773131907114,2.39845639,86.829,86.799,2.56878564]
[1773131907409,2.39845639,86.829,86.79,2.56878564]
[1773131907712,2.39845639,86.829,86.791,2.56878564]
[1773131908813,2.39845639,86.829,86.793,2.56878564]
[1773131910227,2.39845639,86.837,86.793,2.56878564]
[1773131910419,2.39845639,86.835,86.793,2.56878564]
[1773131910601,10.9042951,86.83,86.793,2.56878564]
[1773131912121,2.39845639,86.829,86.795,2.56878564]
[1773131912808,2.39845639,86.828,86.795,2.56878564]
[1773131913811,11.51688951,86.829,86.795,2.56878564]
[1773131914024,2.50128483,86.836,86.795,2.56878564]
[1773131914225,2.50128483,86.835,86.797,2.40461072]
[1773131914425,11.51600815,86.836,86.797,2.40461072]
[1773131914426,13.40557993,86.83,86.797,2.40461072]
[1773131914626,2.50128483,86.829,86.797,2.40461072]
[1773131915028,2.50128483,86.839,86.797,2.40461072]
[1773131915222,2.50128483,86.838,86.797,2.40461072]
[1773131915533,2.50128483,86.829,86.797,2.40461072]
[1773131916113,11.51556328,86.839,86.799,2.40461072]
[1773131916114,2.50128483,86.836,86.799,2.40461072]
[1773131917123,2.50128483,86.836,86.801,2.40461072]
[1773131917437,2.50128483,86.836,86.803,2.40461072]
[1773131918017,2.50128483,86.839,86.803,2.40461072]
[1773131919932,2.50128483,86.829,86.794,3.69383402]
[1773131920118,2.50128483,86.829,86.767,46.1000497]
[1773131920119,40.30493562,86.838,86.758,10.27489121]
[1773131920120,2.50128483,86.799,86.758,10.27489121]
[1773131920317,10.9042951,86.77,86.758,8.14779529]
[1773131920620,10.9042951,86.78,86.758,7.08424733]
[1773131920813,3.69383402,86.814,86.758,7.08424733]
[1773131921013,10.9042951,86.78,86.758,7.08424733]
[1773131921235,4.82477569,86.834,86.76,2.40461072]
[1773131921420,10.9042951,86.81,86.761,2.40461072]
[1773131921825,10.9042951,86.81,86.758,7.08424733]
[1773131921826,10.9042951,86.81,86.771,2.40461072]
[1773131922025,10.9042951,86.82,86.771,2.40461072]
[1773131922634,2.04752542,86.819,86.771,2.40461072]
[1773131923436,10.9042951,86.81,86.771,2.40461072]
[1773131924143,2.04942105,86.809,86.773,2.40461072]
[1773131924331,10.9042951,86.81,86.773,2.40461072]
[1773131925536,10.9042951,86.81,86.772,40.33559212]
[1773131925537,10.9042951,86.81,86.775,2.40461072]
[1773131925742,11.5195429,86.809,86.775,2.40461072]
[1773131927144,12.95326628,86.8,86.774,11.52418927]
[1773131927341,2.04897118,86.799,86.774,11.52418927]
[1773131927722,2.04897118,86.799,86.767,11.52511899]
[1773131928047,2.04897118,86.799,86.768,2.40461072]
[1773131928347,10.93292244,86.78,86.762,11.52572357]
[1773131929038,10.93292244,86.78,86.759,2.40461072]
[1773131929336,2.04762133,86.78,86.758,7.08424733]
[1773131929544,12.98054377,86.78,86.758,7.08424733]
[1773131930341,12.98054377,86.78,86.758,18.61052352]
[1773131930844,2.04630232,86.792,86.759,2.50426575]
[1773131931039,10.93292244,86.79,86.759,2.50426575]
[1773131931349,10.93292244,86.78,86.759,2.50426575]
[1773131931738,10.93292244,86.79,86.759,2.50426575]
[1773131932139,2.04501344,86.789,86.759,2.50426575]
[1773131932452,10.93292244,86.78,86.76,11.52604887]
[1773131932839,11.52233027,86.788,86.76,11.52604887]
[1773131933651,11.52233027,86.788,86.762,11.52578317]
[1773131933838,11.52233027,86.788,86.762,14.03004892]
[1773131934151,10.93292244,86.79,86.763,2.50426575]
[1773131934359,2.04375399,86.798,86.763,2.50426575]
[1773131935157,11.5210574,86.798,86.763,2.50426575]
[1773131935350,10.93292244,86.8,86.763,2.50426575]
[1773131936357,2.04313509,86.806,86.765,2.50426575]
[1773131936656,11.51980183,86.808,86.771,2.50426575]
[1773131937851,10.93292244,86.81,86.771,2.50426575]
[1773131938049,11.5195429,86.809,86.771,2.50426575]
[1773131938358,10.93292244,86.79,86.764,14.02978324]
[1773131938950,2.04132073,86.789,86.764,11.52551749]
[1773131939258,2.04072979,86.797,86.765,2.50426575]
[1773131939759,10.93292244,86.8,86.765,2.50426575]
[1773131940065,11.51967704,86.808,86.765,2.50426575]
[1773131940273,10.93292244,86.81,86.771,2.50426575]
[1773131940559,56.97375477,86.88,86.791,2.50426575]
[1773131940560,10.93292244,86.83,86.791,2.50426575]
[1773131940930,12.97306807,86.83,86.791,2.50426575]
[1773131941242,2.03956818,86.829,86.791,2.50426575]
[1773131942560,2.03899736,86.827,86.793,2.50426575]
[1773131945946,2.03899736,86.827,86.795,2.47799039]
[1773131947141,10.93292244,86.83,86.795,2.47799039]
[1773131947345,204.33764322,87.262,86.794,11.52153374]
[1773131947346,2.03570754,86.862,86.821,2.47799039]
[1773131947547,10.93292244,86.86,86.821,2.47799039]
[1773131947966,13.54861927,86.859,86.823,2.47799039]
[1773131948544,10.93292244,86.86,86.822,11.51781806]
[1773131948545,2.03518106,86.879,86.831,2.47799039]
[1773131948756,46.01013581,86.938,86.851,2.47799039]
[1773131948757,2.03518106,86.888,86.851,2.47799039]
[1773131949348,2.03518106,86.888,86.822,86.38363547]
[1773131949349,10.93292244,86.87,86.843,2.47799039]
[1773131949550,11.50893668,86.889,86.844,2.47799039]
[1773131949867,1e-08,86.89,86.871,2.47799039]
[1773131950467,1e-08,86.89,86.872,11.51118887]
[1773131950664,1e-08,86.89,86.873,2.47799039]
[1773131951968,1e-08,86.89,86.875,2.47799039]
[1773131952146,1e-08,86.89,86.88,10.93292244]
[1773131952347,2.54300543,86.909,86.875,2.47799039]
[1773131952547,11.5043026,86.924,86.891,2.47799039]
[1773131952761,2.54300543,86.939,86.901,2.47799039]
[1773131952967,11.50288387,86.935,86.91,10.93292244]
[1773131953144,11.50288387,86.935,86.901,2.47799039]
[1773131953353,2.54300543,86.934,86.901,2.47799039]
[1773131953553,0.2,86.95,86.921,2.47799039]
[1773131953764,1e-08,86.95,86.931,2.47799039]
[1773131953961,2.54300543,86.949,86.912,2.47799039]
[1773131954165,10.93292244,86.94,86.912,2.47799039]
[1773131955446,2.54300543,86.949,86.881,3.69383402]
[1773131955447,10.93292244,86.93,86.903,2.47799039]
[1773131955767,2.54300543,86.939,86.903,2.47799039]
[1773131956754,1e-08,86.95,86.903,2.47799039]
[1773131956755,10.93292244,86.93,86.903,2.47799039]
[1773131957064,2.54300543,86.931,86.904,13.98494058]
[1773131957267,11.50245002,86.938,86.904,13.98494058]
[1773131957472,14.04545545,86.938,86.904,13.98494058]
[1773131957864,10.93292244,86.93,86.905,2.47799039]
[1773131958065,11.50245002,86.938,86.905,2.47799039]
[1773131958950,10.93292244,86.93,86.906,11.50668538]
[1773131959361,2.54300543,86.919,86.881,2.47799039]
[1773131959567,10.93292244,86.92,86.881,2.47799039]
[1773131961772,10.93292244,86.92,86.883,2.47799039]
[1773131962676,11.50496439,86.919,86.883,2.47799039]
[1773131962861,10.93292244,86.92,86.883,2.47799039]
[1773131963458,2.54300543,86.939,86.901,2.47799039]
[1773131963882,2.54300543,86.939,86.911,2.47799039]
[1773131964479,11.50193222,86.942,86.911,2.47799039]
[1773131967369,2.54300543,86.939,86.911,2.47799039]
[1773131968467,2.54300543,86.939,86.912,13.9838814]
[1773131969168,2.54300543,86.929,86.907,11.50649027]
[1773131969372,2.54300543,86.928,86.9,13.41091283]
[1773131969564,2.54300543,86.928,86.901,2.47799039]
[1773131969764,11.50299053,86.934,86.901,2.47799039]
[1773131970380,11.50299053,86.934,86.885,3.69383402]
[1773131970381,2.54300543,86.919,86.883,2.47799039]
[1773131970582,2.54300543,86.919,86.891,2.47799039]
[1773131970788,2.54300543,86.937,86.911,2.47799039]
[1773131970965,2.54300543,86.949,86.911,2.47799039]
[1773131971179,10.93292244,86.94,86.911,2.47799039]
[1773131971387,11.50231771,86.939,86.912,11.50589101]
[1773131971772,2.54300543,86.929,86.904,11.50695019]
[1773131972300,2.54300543,86.929,86.896,2.47799039]
[1773131972469,2.54300543,86.919,86.895,11.50814201]
[1773131973822,13.907367,86.926,86.895,2.43704128]
[1773131976607,2.40326167,86.925,86.896,11.50800957]
[1773131977420,10.93292244,86.92,86.896,11.50800957]
[1773131979026,10.93292244,86.92,86.861,62.8]
[1773131979027,2.40326167,86.909,86.878,2.43704128]
[1773131979232,2.40326167,86.909,86.881,2.43704128]
[1773131979404,2.40326167,86.909,86.874,2.43704128]
[1773131979908,11.50496439,86.919,86.891,2.43704128]
[1773131980630,11.50434093,86.924,86.891,2.43704128]
[1773131980809,2.40326167,86.926,86.891,2.43704128]
[1773131981013,13.9073014,86.926,86.892,11.50853933]
[1773131981229,13.9073014,86.926,86.893,2.43704128]
[1773131981609,13.90731953,86.926,86.893,2.43704128]
[1773131982616,10.93292244,86.92,86.892,11.50853933]
[1773131982815,2.40326167,86.919,86.893,2.43704128]
[1773131983030,11.50405786,86.926,86.895,2.43704128]
[1773131983226,2.40326167,86.925,86.895,2.43704128]
[1773131984542,2.40326167,86.923,86.896,11.50800957]
[1773131985730,2.40326167,86.923,86.897,2.43704128]
[1773131986413,11.5037181,86.929,86.897,2.43704128]
[1773131986609,11.50324391,86.932,86.899,2.43704128]
[1773131987734,4.06874564,86.93,86.899,2.43704128]
[1773131989525,11.5036409,86.929,86.9,11.50747986]
[1773131989737,14.1448679,86.929,86.901,2.43535774]
[1773131991029,14.1448679,86.929,86.903,2.43535774]
[1773131992130,14.1448679,86.929,86.905,2.43535774]
[1773131992716,2.641227,86.928,86.905,2.43535774]
[1773131993211,2.641227,86.935,86.905,2.43535774]
[1773131993419,14.14414978,86.935,86.905,2.43535774]
[1773131994234,2.641227,86.934,86.906,11.50668538]
[1773131994727,2.641227,86.934,86.906,13.94204312]
[1773131994935,2.641227,86.934,86.907,2.43535774]
[1773131995934,2.641227,86.934,86.906,11.50668538]
[1773131995935,14.14431813,86.934,86.909,2.43535774]
[1773131996436,4.06874564,86.93,86.909,2.43535774]
[1773131997335,2.641227,86.933,86.909,2.43535774]
[1773131998235,11.50119024,86.948,86.911,2.43535774]
[1773131999019,14.14241724,86.948,86.911,2.43535774]
[1773131999425,2.641227,86.947,86.911,2.43535774]
[1773131999941,2.641227,86.939,86.911,2.43535774]
[1773132000236,2.641227,86.937,86.912,11.50589101]
[1773132000626,2.641227,86.937,86.913,2.43535774]
[1773132000828,2.641227,86.937,86.904,2.43535774]
[1773132001018,2.641227,86.929,86.904,13.94230793]
[1773132001420,2.641227,86.929,86.844,12.78019909]
[1773132001421,2.641227,86.919,86.895,2.43535774]
[1773132001637,2.641227,86.919,86.889,13.94426736]
[1773132002040,11.50245002,86.938,86.901,2.43535774]
[1773132002240,11.50245002,86.938,86.903,2.43535774]
[1773132002631,1e-08,86.95,86.921,2.43535774]
[1773132002838,1e-08,86.95,86.931,2.43535774]
[1773132003033,2.641227,86.989,86.942,2.43535774]
[1773132003245,2.641227,86.999,86.961,2.43535774]
[1773132003752,3.69383402,87.024,86.961,2.43535774]
[1773132003753,4.06874564,86.99,86.961,2.43535774]
[1773132004132,11.49570635,86.989,86.961,2.43535774]
[1773132004634,11.49473187,86.997,86.97,4.06874564]
[1773132004855,11.49473187,86.997,86.971,2.52116279]
[1773132005851,11.49319602,87.008,86.971,2.52116279]
[1773132006432,4.06874564,87.0,86.973,2.52116279]
[1773132006634,2.61051448,86.999,86.973,2.52116279]
[1773132006947,2.61051448,86.989,86.961,2.52116279]
[1773132007129,2.61051448,86.989,86.955,11.50015746]
[1773132007337,2.61051448,86.969,86.941,2.52116279]
[1773132009341,11.4984822,86.968,86.941,2.52116279]
[1773132011158,2.61051448,86.967,86.934,14.02404409]
[1773132011340,2.61051448,86.967,86.935,2.52116279]
[1773132011546,11.49874663,86.966,86.941,2.52116279]
[1773132012457,11.49808556,86.971,86.941,2.52116279]
[1773132012657,2.61051448,86.972,86.941,2.52116279]
[1773132012955,14.10754249,86.979,86.941,2.52116279]
[1773132013147,11.49702801,86.979,86.951,2.52116279]
[1773132014456,14.1066173,86.986,86.953,2.52116279]
[1773132014764,2.61051448,86.985,86.953,2.52116279]
[1773132016361,11.49610282,86.986,86.953,2.52116279]
[1773132017567,11.49610282,86.986,86.955,2.52116279]
[1773132018366,14.1066173,86.986,86.955,2.52116279]
[1773132020251,11.49636714,86.984,86.955,2.52116279]
[1773132020663,2.61051448,86.983,86.955,2.52116279]
[1773132020861,2.61051448,86.979,86.941,2.52116279]
[1773132021166,2.61051448,86.969,86.941,2.52116279]
[1773132021466,2.61051448,86.959,86.925,2.52116279]
[1773132021962,2.61051448,86.969,86.931,2.52116279]
[1773132022169,2.61051448,86.969,86.924,40.26505912]
[1773132022170,2.61051448,86.979,86.941,2.52116279]
[1773132022552,2.61051448,86.977,86.941,2.52116279]
[1773132022861,2.61051448,86.969,86.932,2.52116279]
[1773132023068,2.61051448,86.969,86.941,2.52116279]
[1773132024755,11.4984822,86.968,86.941,2.52116279]
[1773132025071,14.10899668,86.968,86.941,2.52116279]
[1773132025372,2.61051448,86.967,86.931,2.52116279]
[1773132028361,11.49874663,86.966,86.933,2.52116279]
[1773132029584,11.49874663,86.966,86.935,2.52116279]
[1773132029870,2.61051448,86.965,86.935,2.52116279]
[1773132030178,11.49874663,86.966,86.935,2.52116279]
[1773132030372,11.49874663,86.966,86.941,2.52116279]
[1773132031671,11.49874663,86.966,86.943,2.52116279]
[1773132031972,42.8371629,87.007,86.961,2.52116279]
[1773132032174,42.8371629,87.007,86.981,2.52116279]
[1773132033375,2.61051448,87.006,86.981,2.52116279]
[1773132033677,2.42662286,86.997,86.948,2.56829759]
[1773132033853,2.42662286,86.997,86.97,4.0655258]
[1773132034276,2.42662286,86.997,86.971,2.56829759]
[1773132034578,11.49451711,86.998,86.971,2.56829759]
[1773132035956,11.49398864,87.002,86.972,11.49795336]
[1773132036160,11.49398864,87.002,86.973,2.56829759]
[1773132037177,2.42662286,87.001,86.973,2.56829759]
[1773132038564,11.49425287,87.0,86.975,2.56829759]
[1773132039864,13.92087573,87.0,86.975,2.56829759]
[1773132040583,2.42662286,86.999,86.975,2.56829759]
[1773132041970,11.49451711,86.998,86.975,2.56829759]
[1773132042779,2.42662286,87.003,86.981,2.56829759]
[1773132044865,13.91704559,87.029,86.991,2.56829759]
[1773132045068,2.42662286,87.028,86.992,2.56829759]
[1773132046761,2.42662286,87.028,87.001,2.56829759]
[1773132047087,2.42662286,87.019,86.993,2.56829759]
[1773132047381,2.42662286,87.019,87.0,4.0655258]
[1773132047680,2.42662286,87.019,86.999,2.56829759]
[1773132048981,13.9184981,87.018,86.992,2.56829759]
[1773132049690,11.49187524,87.018,86.992,2.56829759]
[1773132049982,2.42662286,87.017,86.992,2.56829759]
[1773132050572,11.49213937,87.016,86.992,11.49522032]
[1773132050773,28.72671699,87.027,87.001,2.56829759]
[1773132050774,11.49161589,87.02,87.001,2.56829759]
[1773132051478,2.50191897,87.023,87.001,2.56829759]
[1773132052797,11.49134701,87.022,87.001,2.56829759]
[1773132053782,0.2,87.04,87.0,4.06005876]
[1773132053783,0.2,87.04,87.011,2.56347138]
[1773132054102,11.4875687,87.051,87.031,2.56347138]
[1773132054278,0.2,87.06,87.041,2.56347138]
[1773132054606,0.2,87.06,87.006,3.69383402]
[1773132054607,2.50191897,87.057,87.031,2.56347138]
[1773132055679,11.48719266,87.054,87.031,2.56347138]
[1773132056318,0.2,87.06,87.033,2.56347138]
[1773132056910,11.48647094,87.059,87.033,2.56347138]
[1773132057099,11.48698537,87.056,87.033,2.56347138]
[1773132061007,0.2,87.06,87.041,2.56347138]
[1773132063011,2.70191897,87.06,87.041,2.56347138]
[1773132063523,11.48661649,87.058,87.041,2.56347138]
[1773132063705,11.48726287,87.053,87.034,2.62260664]
[1773132065922,2.70191897,87.06,87.017,28.72998969]
[1773132065923,2.42566595,87.048,87.027,2.62260664]
[1773132066126,2.42566595,87.048,87.03,4.06005876]
[1773132066312,11.68766709,87.05,87.031,2.62260664]
[1773132067318,2.42566595,87.049,87.011,2.62260664]
[1773132067701,2.42566595,87.049,87.013,2.62260664]
[1773132068802,2.42566595,87.047,87.013,2.62260664]
[1773132069207,0.2,87.05,87.041,2.62260664]
[1773132070011,0.2,87.05,87.031,2.62260664]
[1773132071220,2.42566595,87.048,87.011,2.62260664]
[1773132071601,11.48778274,87.049,87.021,2.62260664]
[1773132073308,0.2,87.05,87.031,2.62260664]
[1773132073497,0.2,87.05,87.022,11.49134701]
[1773132073498,0.2,87.05,87.041,2.62260664]
[1773132075510,0.2,87.05,87.04,4.06005876]
[1773132075915,0.2,87.05,87.035,2.62260664]
[1773132076224,0.2,87.05,87.035,14.11218213]
[1773132076827,0.2,87.05,87.03,4.06005876]
[1773132077026,11.48778274,87.049,87.03,4.06005876]
[1773132077204,2.42566595,87.048,87.01,4.06005876]
[1773132077926,2.42566595,87.048,87.02,4.06005876]
[1773132079112,11.48804668,87.047,87.02,4.06005876]
[1773132079318,2.42566595,87.046,87.012,2.62260664]
[1773132080016,2.42566595,87.039,86.996,2.62260664]
[1773132080217,2.42566595,87.029,86.996,2.62260664]
[1773132080415,2.42566595,87.046,87.02,6.6826654]
[1773132080635,2.42566595,87.046,87.03,4.06005876]
[1773132081031,2.42566595,87.046,87.021,2.62260664]
[1773132081216,2.42566595,87.044,87.02,4.06005876]
[1773132081420,2.42566595,87.044,87.015,2.62260664]
[1773132081616,2.42566595,87.044,87.016,11.49213937]
[1773132081821,2.42566595,87.044,87.02,4.06005876]
[1773132082020,2.42566595,87.044,87.02,6.6826654]
[1773132082937,2.42566595,87.049,87.03,4.06005876]
[1773132083144,0.2,87.05,87.031,2.62260664]
[1773132083634,0.2,87.06,87.041,2.62260664]
[1773132083832,0.2,87.06,87.05,4.06005876]
[1773132084035,0.2,87.06,87.041,2.62260664]
[1773132084221,11.68643264,87.06,87.041,2.62260664]
[1773132084423,14.11209859,87.06,87.04,4.06005876]
[1773132084620,2.42566595,87.059,87.04,4.06005876]
[1773132084821,2.42566595,87.057,87.035,2.62260664]
[1773132085037,2.42566595,87.057,87.02,6.6826654]
[1773132085340,2.42566595,87.057,87.021,14.1140857]
[1773132085521,2.42566595,87.049,87.013,2.62260664]
[1773132085718,40.20308299,87.058,87.001,11.49402233]
[1773132085719,2.42566595,87.039,87.001,11.49402233]
[1773132086421,2.42566595,87.039,87.001,11.49412075]
[1773132086842,2.42566595,87.039,87.001,14.11672739]
[1773132087041,2.42566595,87.037,87.002,2.62260664]
[1773132088945,2.42566595,87.029,87.002,2.62260664]
[1773132089236,2.42566595,87.027,87.003,2.62260664]
[1773132089444,2.42566595,87.034,87.011,2.62260664]
[1773132090240,2.42566595,87.046,87.011,2.62260664]
[1773132091120,2.42566595,87.037,87.0,4.06005876]
[1773132091314,2.42566595,87.037,87.002,2.62260664]
[1773132091528,2.42566595,87.037,87.01,6.6826654]
[1773132091939,2.42566595,87.037,87.011,2.62260664]
[1773132092621,2.42566595,87.037,87.02,4.06005876]
[1773132093029,2.42566595,87.037,87.011,2.62260664]
[1773132095048,2.42566595,87.037,87.013,2.60673915]
[1773132095224,13.91503414,87.037,87.013,2.60673915]
[1773132097444,2.65187138,87.036,87.013,2.60673915]
[1773132097848,2.65187138,87.036,87.014,14.09914267]
[1773132098041,2.65187138,87.036,87.02,4.06005876]
[1773132099061,2.65187138,87.036,87.015,2.60673915]
[1773132099644,2.65187138,87.034,87.011,2.60673915]
[1773132100040,2.65187138,87.04,87.011,2.60673915]
[1773132101259,6.71193014,87.04,87.01,4.06005876]
[1773132101443,2.65187138,87.039,87.004,2.60673915]
[1773132101645,2.65187138,87.037,87.005,11.49359232]
[1773132103654,2.65187138,87.035,87.004,2.60673915]
[1773132104844,2.65187138,87.048,87.021,2.60673915]
[1773132105052,11.4864632,87.059,87.041,2.60673915]
[1773132105669,0.2,87.06,87.05,4.06005876]
[1773132105847,2.65187138,87.075,87.051,2.60673915]
[1773132106169,2.65187138,87.072,87.051,2.60673915]
[1773132106370,2.65187138,87.072,87.05,4.06005876]
[1773132107352,2.65187138,87.07,87.05,4.06005876]
[1773132108455,2.65187138,87.07,87.045,11.48829084]
[1773132108654,0.2,87.08,87.061,2.60673915]
[1773132108655,1e-08,87.08,87.061,2.60673915]
[1773132108848,2.65187138,87.099,87.071,2.60673915]
[1773132109045,11.48133905,87.098,87.08,4.06005876]
[1773132109256,2.65187138,87.098,87.08,4.06005876]
[1773132111069,11.47987004,87.109,87.09,4.06005876]
[1773132111256,11.48131989,87.098,87.07,4.06005876]
[1773132111454,2.44462191,87.097,87.07,4.06005876]
[1773132111654,2.44462191,87.097,87.071,2.46296119]
[1773132112057,2.44462191,87.104,87.081,2.46296119]
[1773132112264,2.44462191,87.104,87.09,4.05248299]
[1773132113958,11.4799521,87.109,87.09,4.05248299]
[1773132114158,2.44462191,87.108,87.09,4.05248299]
[1773132115172,0.2,87.11,87.091,2.46296119]
[1773132115765,14.1244178,87.11,87.091,2.46296119]
[1773132115973,2.44462191,87.109,87.085,11.48303381]
[1773132116276,2.44462191,87.107,87.08,4.05248299]
[1773132116675,2.44462191,87.107,87.09,4.05248299]
[1773132117358,0.2,87.11,87.091,2.46296119]
[1773132118062,0.2,87.11,87.091,13.94514459]
[1773132118278,4.25248299,87.13,87.091,13.94514459]
[1773132118279,0.2,87.13,87.101,2.46296119]
[1773132118578,45.87472299,87.194,87.121,2.46296119]
[1773132118579,2.44462191,87.147,87.121,2.46296119]
[1773132118763,2.44462191,87.147,87.13,4.05248299]
[1773132119159,2.44462191,87.147,87.121,2.46296119]
[1773132119865,2.44462191,87.147,87.13,4.05248299]
[1773132120064,2.44462191,87.175,87.141,2.46296119]
[1773132120270,2.44462191,87.175,87.15,4.05248299]
[1773132120465,2.44462191,87.175,87.16,4.05248299]
[1773132120682,2.44462191,87.175,87.148,2.46296119]
[1773132120871,2.44462191,87.175,87.14,4.05248299]
[1773132121267,2.44462191,87.175,87.15,4.05248299]
[1773132121474,2.44462191,87.192,87.15,2.46296119]
[1773132121670,2.44462191,87.192,87.17,4.05248299]
[1773132122058,2.44462191,87.19,87.161,2.46296119]
[1773132122273,2.44462191,87.189,87.15,4.05248299]
[1773132122660,2.64462191,87.2,87.171,2.46296119]
[1773132122974,2.64462191,87.2,87.168,2.46296119]
[1773132122975,2.44462191,87.198,87.168,2.46296119]
[1773132123157,11.46802142,87.199,87.152,2.46296119]
[1773132123158,2.44462191,87.189,87.152,2.46296119]
[1773132123358,2.44462191,87.189,87.16,4.05248299]
[1773132123564,2.63841534,87.169,87.131,2.51240219]
[1773132123772,2.63841534,87.169,87.14,4.05248299]
[1773132124588,2.63841534,87.167,87.133,2.51240219]
[1773132124769,2.63841534,87.167,87.14,4.05248299]
[1773132125374,2.63841534,87.167,87.141,2.51240219]
[1773132125576,2.63841534,87.167,87.14,4.05248299]
[1773132126074,2.63841534,87.167,87.133,2.51240219]
[1773132126277,2.63841534,87.167,87.14,4.05248299]
[1773132126686,2.63841534,87.165,87.14,4.05248299]
[1773132127698,2.63841534,87.159,87.131,2.51240219]
[1773132127996,11.47151678,87.173,87.151,2.51240219]
[1773132128697,2.63841534,87.179,87.151,2.51240219]
[1773132129093,2.63841534,87.179,87.15,4.05248299]
[1773132129294,2.63841534,87.179,87.144,2.51240219]
[1773132129886,2.63841534,87.179,87.15,4.05248299]
[1773132130293,2.63841534,87.188,87.161,2.51240219]
[1773132130610,4.25248299,87.2,87.171,2.51240219]
[1773132130611,2.63841534,87.195,87.171,2.51240219]
[1773132130787,11.46806864,87.199,87.18,4.05248299]
[1773132131287,0.2,87.2,87.18,4.05248299]
[1773132131790,11.6679024,87.2,87.18,4.05248299]
[1773132133982,2.63841534,87.231,87.191,2.51240219]
[1773132134185,11.46407731,87.229,87.21,4.05248299]
[1773132134710,2.63841534,87.219,87.186,2.51240219]
[1773132134985,2.63841534,87.219,87.181,11.47038919]
[1773132134986,2.63841534,87.209,87.177,2.51240219]
[1773132135388,4.05248299,87.2,87.168,2.51240219]
[1773132135698,40.12933109,87.218,87.171,2.51240219]
[1773132135699,2.63841534,87.199,87.171,2.51240219]
[1773132136278,2.63841534,87.199,87.161,2.51240219]
[1773132137294,4.05248299,87.2,87.163,2.51240219]
[1773132137295,2.63841534,87.197,87.163,2.51240219]
[1773132137996,2.63841534,87.206,87.18,4.05248299]
[1773132138199,2.63841534,87.204,87.172,2.51240219]
[1773132138371,2.63841534,87.204,87.18,4.05248299]
[1773132138574,2.63841534,87.204,87.172,2.51240219]
[1773132139091,2.63841534,87.199,87.164,2.51240219]
[1773132139275,2.63841534,87.197,87.164,2.51240219]
[1773132139480,2.63841534,87.197,87.17,4.05248299]
[1773132139777,2.63841534,87.197,87.164,2.51240219]
[1773132140498,2.63841534,87.197,87.17,4.05248299]
[1773132141376,2.63841534,87.195,87.164,2.51240219]
[1773132142599,2.63841534,87.179,87.15,4.05248299]
[1773132142999,2.63841534,87.179,87.151,2.51240219]
[1773132144196,2.63841534,87.179,87.15,4.05248299]
[1773132144392,2.63841534,87.179,87.144,2.51240219]
[1773132144587,2.63841534,87.177,87.144,2.51240219]
[1773132146396,2.63841534,87.177,87.15,4.05248299]
[1773132147198,11.47104707,87.176,87.15,6.56488518]
[1773132147490,11.47104707,87.176,87.151,2.51240219]
[1773132147892,2.63841534,87.175,87.151,2.51240219]
[1773132148593,2.63841534,87.175,87.146,11.47498345]
[1773132149098,2.63841534,87.175,87.147,2.51240219]
[1773132149310,11.47131025,87.174,87.149,2.51240219]
[1773132149596,11.47131025,87.174,87.151,2.51240219]
[1773132150105,2.02355473,87.173,87.151,2.51240219]
[1773132150498,2.02355473,87.173,87.151,0.69352294]
[1773132150807,2.02355473,87.173,87.143,11.47527402]
[1773132151494,2.63841534,87.171,87.14,4.05248299]
[1773132151994,11.47157344,87.172,87.15,4.05248299]
[1773132152197,2.63841534,87.177,87.15,4.05248299]
[1773132152589,2.63841534,87.177,87.15,6.56488518]
[1773132152789,2.63841534,87.177,87.151,2.51240219]
[1773132152995,2.63841534,87.177,87.15,4.05248299]
[1773132153199,2.63841534,87.177,87.151,2.51240219]
[1773132153405,28.67508994,87.184,87.15,4.05248299]
[1773132153406,2.63841534,87.175,87.15,4.05248299]
[1773132153613,2.63841534,87.175,87.147,11.4747806]
[1773132153817,2.63841534,87.175,87.15,6.57023686]
[1773132154022,2.54038737,87.208,87.161,2.51775387]
[1773132154214,2.54038737,87.208,87.19,4.05248299]
[1773132155218,2.54038737,87.208,87.181,2.51775387]
[1773132155810,11.46696939,87.207,87.183,2.51775387]
[1773132156023,11.46696939,87.207,87.19,4.05248299]
[1773132156607,11.46635225,87.212,87.19,4.05248299]
[1773132156812,28.66165729,87.225,87.2,4.05248299]
[1773132156813,14.00512184,87.224,87.2,4.05248299]
[1773132157109,2.54038737,87.223,87.191,2.51775387]